[Event "Early-Titled-Tuesday-Blitz-February-20-2024"]
[Site "Chess.com"]
[Date "2024.02.20"]
[Round "11"]
[White "Orest_Vovk"]
[Black "TitarovVasiliYouTube"]
[Result "1-0"]
[WhiteElo "2655"]
[BlackElo "2509"]
[TimeControl "180+1"]
[EndTime "10:09:17 PST"]
[Termination "Orest_Vovk won by resignation"]

1. h4 {[%clk 0:02:51.6]} 1... d5 {[%clk 0:02:58.4]} 2. h5 {[%clk 0:02:50.8]}
2... e5 {[%clk 0:02:56.8]} 3. h6 {[%clk 0:02:50.7]} 3... Nxh6 {[%clk 0:02:51.6]}
4. d4 {[%clk 0:02:50.4]} 4... e4 {[%clk 0:02:46.9]} 5. Bxh6 {[%clk 0:02:49.8]}
5... gxh6 {[%clk 0:02:47.7]} 6. e3 {[%clk 0:02:49.8]} 6... Bg7 {[%clk
0:02:45.7]} 7. c4 {[%clk 0:02:49.9]} 7... c5 {[%clk 0:02:41.7]} 8. Nc3 {[%clk
0:02:46.7]} 8... cxd4 {[%clk 0:02:40.1]} 9. Nxd5 {[%clk 0:02:43.8]} 9... dxe3
{[%clk 0:02:31.2]} 10. Nxe3 {[%clk 0:02:31.7]} 10... Be6 {[%clk 0:01:53.9]} 11.
Qxd8+ {[%clk 0:02:29.7]} 11... Kxd8 {[%clk 0:01:52.7]} 12. O-O-O+ {[%clk
0:02:30.6]} 12... Kc8 {[%clk 0:01:48.4]} 13. Rh4 {[%clk 0:02:30.4]} 13... f5
{[%clk 0:01:44.4]} 14. Nh3 {[%clk 0:02:17.7]} 14... Nc6 {[%clk 0:01:40.5]} 15.
Nf4 {[%clk 0:02:17.5]} 15... Bd7 {[%clk 0:01:37.6]} 16. Ned5 {[%clk 0:02:03.5]}
16... b6 {[%clk 0:01:20.9]} 17. c5 {[%clk 0:02:02.6]} 17... Kb7 {[%clk
0:01:18.5]} 18. Nxb6 {[%clk 0:02:01.5]} 18... Be8 {[%clk 0:01:05.5]} 19. Nxa8
{[%clk 0:01:59.4]} 19... Kxa8 {[%clk 0:01:06.4]} 20. Ne6 {[%clk 0:01:47]} 20...
Be5 {[%clk 0:00:57.5]} 21. Rxh6 {[%clk 0:01:36]} 21... Bg6 {[%clk 0:00:54.1]}
22. Rd7 {[%clk 0:01:21]} 22... Re8 {[%clk 0:00:50.8]} 23. Nc7+ {[%clk
0:01:18.5]} 23... Bxc7 {[%clk 0:00:48.8]} 24. Rxc7 {[%clk 0:01:19.4]} 24... Ne5
{[%clk 0:00:48.2]} 25. Ba6 {[%clk 0:00:43.4]} 25... Ng4 {[%clk 0:00:39.2]} 26.
Rhxh7 {[%clk 0:00:23.4]} 26... Bxh7 {[%clk 0:00:39]} 27. Rxh7 {[%clk 0:00:24.3]}
27... Ne5 {[%clk 0:00:28.5]} 28. b4 {[%clk 0:00:17.7]} 28... Kb8 {[%clk
0:00:23.9]} 29. b5 {[%clk 0:00:12.6]} 29... Nd3+ {[%clk 0:00:23.2]} 30. Kd2
{[%clk 0:00:12.5]} 30... Nxc5 {[%clk 0:00:23]} 31. Ke3 {[%clk 0:00:09.9]} 31...
Nxa6 {[%clk 0:00:08.4]} 32. bxa6 {[%clk 0:00:09.3]} 32... Re6 {[%clk 0:00:09.1]}
33. Rb7+ {[%clk 0:00:08.8]} 33... Ka8 {[%clk 0:00:09.2]} 34. Rf7 {[%clk
0:00:08.7]} 34... Rxa6 {[%clk 0:00:06.4]} 35. Rxf5 {[%clk 0:00:08.7]} 35... Ra4
{[%clk 0:00:04.4]} 36. g4 {[%clk 0:00:08.2]} 36... Kb8 {[%clk 0:00:03.1]} 37. g5
{[%clk 0:00:08.4]} 37... Ra5 {[%clk 0:00:03.9]} 38. Rxa5 {[%clk 0:00:07.6]} 1-0

[Event "Early-Titled-Tuesday-Blitz-February-20-2024"]
[Site "Chess.com"]
[Date "2024.02.20"]
[Round "11"]
[White "Capablanca_Oujda_2021"]
[Black "Al_Shima"]
[Result "0-1"]
[WhiteElo "2500"]
[BlackElo "2401"]
[TimeControl "180+1"]
[EndTime "10:09:18 PST"]
[Termination "Al_Shima won by resignation"]

1. b3 {[%clk 0:02:57.5]} 1... e5 {[%clk 0:03:00]} 2. Bb2 {[%clk 0:02:56.1]} 2...
Nc6 {[%clk 0:03:00.9]} 3. g3 {[%clk 0:02:55.6]} 3... d5 {[%clk 0:03:01.2]} 4.
Bg2 {[%clk 0:02:56.1]} 4... Be6 {[%clk 0:02:57.9]} 5. e3 {[%clk 0:02:56.6]} 5...
Qd7 {[%clk 0:02:57.1]} 6. h4 {[%clk 0:02:50.6]} 6... O-O-O {[%clk 0:02:55.3]} 7.
Nc3 {[%clk 0:02:44.6]} 7... d4 {[%clk 0:02:37.8]} 8. Ne4 {[%clk 0:02:39]} 8...
Bd5 {[%clk 0:02:32.3]} 9. f3 {[%clk 0:02:12.9]} 9... f5 {[%clk 0:02:25.6]} 10.
Ng5 {[%clk 0:02:04.1]} 10... h6 {[%clk 0:02:19.6]} 11. e4 {[%clk 0:01:54.8]}
11... hxg5 {[%clk 0:02:08.4]} 12. exd5 {[%clk 0:01:53.9]} 12... Qxd5 {[%clk
0:02:08.8]} 13. Qe2 {[%clk 0:01:47.3]} 13... gxh4 {[%clk 0:02:07.5]} 14. O-O-O
{[%clk 0:01:41.7]} 14... Nf6 {[%clk 0:02:05.8]} 15. Kb1 {[%clk 0:01:36.9]} 15...
Bb4 {[%clk 0:01:53.5]} 16. gxh4 {[%clk 0:01:32.9]} 16... d3 {[%clk 0:01:29.9]}
17. cxd3 {[%clk 0:01:18.5]} 17... Qxd3+ {[%clk 0:01:30.8]} 18. Qxd3 {[%clk
0:01:18.8]} 18... Rxd3 {[%clk 0:01:30]} 19. Kc2 {[%clk 0:01:19.5]} 19... Rhd8
{[%clk 0:01:26.3]} 20. Bc1 {[%clk 0:00:43.8]} 20... Nh5 {[%clk 0:00:51.3]} 21.
Bh3 {[%clk 0:00:39.3]} 21... g6 {[%clk 0:00:49.2]} 22. Ne2 {[%clk 0:00:36.3]}
22... Rxf3 {[%clk 0:00:46.7]} 23. Bg2 {[%clk 0:00:31.9]} 23... Rfd3 {[%clk
0:00:44.8]} 24. Bxc6 {[%clk 0:00:29.3]} 24... bxc6 {[%clk 0:00:45.7]} 25. Rhg1
{[%clk 0:00:21.5]} 25... R8d6 {[%clk 0:00:36.6]} 26. Rxg6 {[%clk 0:00:12.9]}
26... Rxg6 {[%clk 0:00:28.4]} 27. Kxd3 {[%clk 0:00:12.1]} 27... Rd6+ {[%clk
0:00:28.1]} 28. Kc2 {[%clk 0:00:12.4]} 28... f4 {[%clk 0:00:25.1]} 29. Nc3
{[%clk 0:00:11.5]} 29... Bxc3 {[%clk 0:00:22.5]} 30. Kxc3 {[%clk 0:00:12.4]}
30... e4 {[%clk 0:00:18.8]} 31. Ba3 {[%clk 0:00:12.7]} 31... Rd3+ {[%clk
0:00:17.1]} 32. Kc2 {[%clk 0:00:12.4]} 32... Rd8 {[%clk 0:00:09]} 33. Bc5 {[%clk
0:00:12.7]} 33... Re8 {[%clk 0:00:07.4]} 34. Bxa7 {[%clk 0:00:11.3]} 34... f3
{[%clk 0:00:06.2]} 35. Be3 {[%clk 0:00:11.1]} 35... Rg8 {[%clk 0:00:04.3]} 36.
Bg5 {[%clk 0:00:11.1]} 36... Re8 {[%clk 0:00:03.6]} 37. Re1 {[%clk 0:00:11.4]}
37... Ng3 {[%clk 0:00:03.9]} 38. d3 {[%clk 0:00:10.1]} 38... f2 {[%clk
0:00:03.4]} 39. Rd1 {[%clk 0:00:06.6]} 39... e3 {[%clk 0:00:02.5]} 40. Bxe3
{[%clk 0:00:04.8]} 40... Rxe3 {[%clk 0:00:02.3]} 41. Kd2 {[%clk 0:00:05.4]}
41... f1=Q {[%clk 0:00:01.8]} 42. Rxf1 {[%clk 0:00:06.1]} 42... Nxf1+ {[%clk
0:00:02.7]} 0-1

[Event "Early-Titled-Tuesday-Blitz-February-20-2024"]
[Site "Chess.com"]
[Date "2024.02.20"]
[Round "11"]
[White "lachesisQ"]
[Black "ckgchess"]
[Result "1-0"]
[WhiteElo "3059"]
[BlackElo "2892"]
[TimeControl "180+1"]
[EndTime "10:09:24 PST"]
[Termination "lachesisQ won on time"]

1. e4 {[%clk 0:02:59.1]} 1... c5 {[%clk 0:03:00.1]} 2. Nf3 {[%clk 0:02:58.8]}
2... d6 {[%clk 0:03:00.6]} 3. d4 {[%clk 0:02:59.6]} 3... cxd4 {[%clk 0:03:01.5]}
4. Nxd4 {[%clk 0:03:00.4]} 4... Nf6 {[%clk 0:03:01.9]} 5. Nc3 {[%clk 0:03:01]}
5... e5 {[%clk 0:03:02.3]} 6. Bb5+ {[%clk 0:02:59.9]} 6... Nbd7 {[%clk 0:03:03]}
7. Nf5 {[%clk 0:02:59.4]} 7... a6 {[%clk 0:03:03.5]} 8. Bxd7+ {[%clk 0:02:49.3]}
8... Qxd7 {[%clk 0:03:04.4]} 9. Bg5 {[%clk 0:02:46.5]} 9... Nxe4 {[%clk
0:03:04.9]} 10. Nxg7+ {[%clk 0:02:46.7]} 10... Bxg7 {[%clk 0:03:05.8]} 11. Nxe4
{[%clk 0:02:46.9]} 11... O-O {[%clk 0:03:06.6]} 12. Qd5 {[%clk 0:02:39.2]} 12...
Qf5 {[%clk 0:03:01]} 13. f3 {[%clk 0:02:38.6]} 13... Be6 {[%clk 0:02:52.9]} 14.
Qxd6 {[%clk 0:02:38.6]} 14... Rfc8 {[%clk 0:02:47.5]} 15. Qd2 {[%clk 0:02:36.4]}
15... Rc6 {[%clk 0:02:34.1]} 16. Rd1 {[%clk 0:02:30.1]} 16... Rac8 {[%clk
0:02:29.5]} 17. c3 {[%clk 0:02:27.4]} 17... Bxa2 {[%clk 0:02:25.8]} 18. O-O
{[%clk 0:02:21.2]} 18... Bb3 {[%clk 0:02:24]} 19. Rde1 {[%clk 0:02:18.2]} 19...
Qg6 {[%clk 0:02:14.4]} 20. f4 {[%clk 0:01:59.7]} 20... f5 {[%clk 0:02:05.8]} 21.
Ng3 {[%clk 0:01:50.3]} 21... Rd6 {[%clk 0:01:48.6]} 22. Qe3 {[%clk 0:01:37.5]}
22... e4 {[%clk 0:01:48.8]} 23. Qa7 {[%clk 0:01:13.7]} 23... Qf7 {[%clk
0:01:44.7]} 24. Ne2 {[%clk 0:01:10.2]} 24... Bc4 {[%clk 0:01:39.7]} 25. Rf2
{[%clk 0:01:09.6]} 25... Bf8 {[%clk 0:01:29.6]} 26. Nd4 {[%clk 0:00:39]} 26...
Rd7 {[%clk 0:00:58.6]} 27. Qb6 {[%clk 0:00:33.4]} 27... h6 {[%clk 0:00:53.7]}
28. Bh4 {[%clk 0:00:30.6]} 28... Rd6 {[%clk 0:00:48.3]} 29. Qa5 {[%clk
0:00:29.3]} 29... Rd5 {[%clk 0:00:46.3]} 30. Qa4 {[%clk 0:00:28.6]} 30... a5
{[%clk 0:00:32.8]} 31. h3 {[%clk 0:00:27.8]} 31... b5 {[%clk 0:00:33.2]} 32.
Qxa5 {[%clk 0:00:25.5]} 32... Ra8 {[%clk 0:00:26.9]} 33. Qxa8 {[%clk 0:00:24.6]}
33... b4 {[%clk 0:00:20.1]} 34. Re3 {[%clk 0:00:23.7]} 34... Kh7 {[%clk
0:00:20.1]} 35. Rg3 {[%clk 0:00:23.3]} 35... bxc3 {[%clk 0:00:20]} 36. bxc3
{[%clk 0:00:23.4]} 36... Bg7 {[%clk 0:00:20.7]} 37. Rxg7+ {[%clk 0:00:22.3]}
37... Qxg7 {[%clk 0:00:19.8]} 38. Qe8 {[%clk 0:00:20.5]} 38... Ra5 {[%clk
0:00:13.9]} 39. Kh2 {[%clk 0:00:20.5]} 39... Bd3 {[%clk 0:00:11.7]} 40. Qe6
{[%clk 0:00:19.5]} 40... Qg6 {[%clk 0:00:11.5]} 41. Qe7+ {[%clk 0:00:18.9]}
41... Qg7 {[%clk 0:00:12]} 42. Qxg7+ {[%clk 0:00:18.1]} 42... Kxg7 {[%clk
0:00:12.9]} 43. Rb2 {[%clk 0:00:18.5]} 43... Rc5 {[%clk 0:00:12]} 44. Be1 {[%clk
0:00:18.5]} 44... Kg6 {[%clk 0:00:11.5]} 45. Rb6+ {[%clk 0:00:18.4]} 45... Kh5
{[%clk 0:00:10.7]} 46. Ne6 {[%clk 0:00:18.6]} 46... Rc7 {[%clk 0:00:06.8]} 47.
Nxc7 {[%clk 0:00:18.5]} 1-0

[Event "Early-Titled-Tuesday-Blitz-February-20-2024"]
[Site "Chess.com"]
[Date "2024.02.20"]
[Round "11"]
[White "Bauman_Guy"]
[Black "JSPrepz"]
[Result "1-0"]
[WhiteElo "2930"]
[BlackElo "2866"]
[TimeControl "180+1"]
[EndTime "10:09:27 PST"]
[Termination "Bauman_Guy won by resignation"]

1. e4 {[%clk 0:03:00.9]} 1... e5 {[%clk 0:02:59.6]} 2. Nf3 {[%clk 0:03:01.3]}
2... Nc6 {[%clk 0:02:57]} 3. Bb5 {[%clk 0:03:01.5]} 3... f5 {[%clk 0:02:54.7]}
4. Nc3 {[%clk 0:03:01.2]} 4... fxe4 {[%clk 0:02:54.8]} 5. Nxe4 {[%clk
0:03:02.1]} 5... d5 {[%clk 0:02:55.5]} 6. Ng3 {[%clk 0:03:02.4]} 6... Bg4 {[%clk
0:02:55.2]} 7. h3 {[%clk 0:03:01.6]} 7... Bxf3 {[%clk 0:02:55.5]} 8. Qxf3 {[%clk
0:03:02.5]} 8... Nf6 {[%clk 0:02:55.9]} 9. d4 {[%clk 0:02:47.2]} 9... e4 {[%clk
0:02:51.5]} 10. Qe2 {[%clk 0:02:46.2]} 10... Bd6 {[%clk 0:02:34.4]} 11. O-O
{[%clk 0:02:44.6]} 11... O-O {[%clk 0:02:33.6]} 12. c3 {[%clk 0:02:44.9]} 12...
Ne7 {[%clk 0:02:30.1]} 13. Ba4 {[%clk 0:02:43.6]} 13... c6 {[%clk 0:02:29.8]}
14. Bc2 {[%clk 0:02:41.9]} 14... Kh8 {[%clk 0:02:29.1]} 15. Be3 {[%clk
0:02:36.3]} 15... Ng6 {[%clk 0:02:26]} 16. Nf5 {[%clk 0:02:35.6]} 16... Bc7
{[%clk 0:02:21.2]} 17. f3 {[%clk 0:02:34.9]} 17... Qd7 {[%clk 0:02:07.8]} 18.
fxe4 {[%clk 0:02:32.8]} 18... Nxe4 {[%clk 0:02:08.7]} 19. Bxe4 {[%clk 0:02:30]}
19... dxe4 {[%clk 0:02:09.6]} 20. Qg4 {[%clk 0:02:29.7]} 20... Rae8 {[%clk
0:02:00.6]} 21. Rf2 {[%clk 0:02:27.4]} 21... Rf7 {[%clk 0:01:46.7]} 22. Raf1
{[%clk 0:02:25.2]} 22... Ref8 {[%clk 0:01:46.2]} 23. Nh6 {[%clk 0:01:27.7]}
23... Rxf2 {[%clk 0:01:31.1]} 24. Rxf2 {[%clk 0:01:26.8]} 24... Qxg4 {[%clk
0:01:10.2]} 25. Nxg4 {[%clk 0:01:27.7]} 25... Re8 {[%clk 0:00:42.9]} 26. Rf7
{[%clk 0:01:18.8]} 26... Re7 {[%clk 0:00:42.1]} 27. Rxe7 {[%clk 0:01:07.4]}
27... Nxe7 {[%clk 0:00:43]} 28. Kf1 {[%clk 0:01:08.2]} 28... Nd5 {[%clk
0:00:36.6]} 29. Ke2 {[%clk 0:01:07.8]} 29... Bg3 {[%clk 0:00:23.6]} 30. c4
{[%clk 0:00:51.6]} 30... Nb4 {[%clk 0:00:21.4]} 31. Bd2 {[%clk 0:00:33.5]} 31...
Nd3 {[%clk 0:00:13.2]} 32. b3 {[%clk 0:00:30.6]} 32... h5 {[%clk 0:00:11.3]} 33.
Ne3 {[%clk 0:00:28.4]} 33... Nf4+ {[%clk 0:00:11.4]} 34. Kf1 {[%clk 0:00:25.6]}
34... g6 {[%clk 0:00:11.4]} 35. Nd1 {[%clk 0:00:16.7]} 35... Nd3 {[%clk
0:00:09.3]} 36. Nc3 {[%clk 0:00:14]} 36... Nb4 {[%clk 0:00:08.7]} 37. Nxe4
{[%clk 0:00:13.1]} 37... Nxa2 {[%clk 0:00:09.2]} 38. Nxg3 {[%clk 0:00:13]} 38...
Kg7 {[%clk 0:00:08.6]} 39. Ke2 {[%clk 0:00:13]} 39... Kf6 {[%clk 0:00:08.8]} 40.
h4 {[%clk 0:00:13.1]} 40... Ke6 {[%clk 0:00:08.8]} 41. Kd3 {[%clk 0:00:13.4]}
41... b5 {[%clk 0:00:09.7]} 42. Kc2 {[%clk 0:00:12.8]} 42... a5 {[%clk
0:00:09.1]} 43. Bxa5 {[%clk 0:00:12.8]} 43... b4 {[%clk 0:00:08.8]} 44. Ne2
{[%clk 0:00:10.4]} 44... Kf5 {[%clk 0:00:09.3]} 45. Kb2 {[%clk 0:00:10.9]} 1-0

[Event "Early-Titled-Tuesday-Blitz-February-20-2024"]
[Site "Chess.com"]
[Date "2024.02.20"]
[Round "11"]
[White "ilqar_74"]
[Black "AniJak"]
[Result "1-0"]
[WhiteElo "2824"]
[BlackElo "2377"]
[TimeControl "180+1"]
[EndTime "10:09:30 PST"]
[Termination "ilqar_74 won on time"]

1. e4 {[%clk 0:03:00.9]} 1... c6 {[%clk 0:02:59.4]} 2. Nf3 {[%clk 0:03:01.3]}
2... d5 {[%clk 0:02:59.7]} 3. Nc3 {[%clk 0:03:02.2]} 3... dxe4 {[%clk
0:02:59.7]} 4. Nxe4 {[%clk 0:03:03.1]} 4... Nf6 {[%clk 0:03:00]} 5. Qe2 {[%clk
0:03:01.7]} 5... Nxe4 {[%clk 0:02:59.7]} 6. Qxe4 {[%clk 0:03:02.6]} 6... Qa5
{[%clk 0:03:00]} 7. Bc4 {[%clk 0:03:01.8]} 7... Qf5 {[%clk 0:02:57.4]} 8. Qxf5
{[%clk 0:03:00.4]} 8... Bxf5 {[%clk 0:02:56.8]} 9. c3 {[%clk 0:03:01]} 9... Nd7
{[%clk 0:02:51.9]} 10. d4 {[%clk 0:02:59.6]} 10... Bg4 {[%clk 0:02:51.8]} 11.
Ng5 {[%clk 0:02:56.8]} 11... e6 {[%clk 0:02:50.4]} 12. h3 {[%clk 0:02:56.7]}
12... Bh5 {[%clk 0:02:49.8]} 13. g4 {[%clk 0:02:56.3]} 13... Bg6 {[%clk
0:02:50]} 14. Bf4 {[%clk 0:02:56.2]} 14... h6 {[%clk 0:02:46.6]} 15. Nf3 {[%clk
0:02:56.2]} 15... Be4 {[%clk 0:02:46.5]} 16. Ke2 {[%clk 0:02:56.3]} 16... Nb6
{[%clk 0:02:44.4]} 17. Bd3 {[%clk 0:02:55.6]} 17... Bxf3+ {[%clk 0:02:41.2]} 18.
Kxf3 {[%clk 0:02:55.5]} 18... O-O-O {[%clk 0:02:40.2]} 19. Rhd1 {[%clk 0:02:55]}
19... Bd6 {[%clk 0:02:37.2]} 20. Bd2 {[%clk 0:02:54.8]} 20... Be7 {[%clk
0:02:31]} 21. Be3 {[%clk 0:02:48.6]} 21... Nd5 {[%clk 0:02:28]} 22. Bd2 {[%clk
0:02:46.7]} 22... Bg5 {[%clk 0:02:22.2]} 23. Be1 {[%clk 0:02:42.8]} 23... Nf4
{[%clk 0:02:17.2]} 24. Bf1 {[%clk 0:02:38.3]} 24... Ng6 {[%clk 0:02:15.5]} 25.
Bd3 {[%clk 0:02:31.2]} 25... Nf4 {[%clk 0:02:14.4]} 26. Kg3 {[%clk 0:02:21.9]}
26... Nd5 {[%clk 0:02:03.5]} 27. Be4 {[%clk 0:02:17.8]} 27... Bf4+ {[%clk
0:01:51.2]} 28. Kf3 {[%clk 0:02:16.6]} 28... Bg5 {[%clk 0:01:49.2]} 29. Bd2
{[%clk 0:02:15.9]} 29... Bxd2 {[%clk 0:01:42.9]} 30. Rxd2 {[%clk 0:02:16.8]}
30... Rd7 {[%clk 0:01:43.1]} 31. Rg1 {[%clk 0:02:15.2]} 31... g6 {[%clk
0:01:32.4]} 32. h4 {[%clk 0:02:12.9]} 32... Nf6 {[%clk 0:01:24.9]} 33. Bc2
{[%clk 0:02:12.8]} 33... e5 {[%clk 0:01:16.2]} 34. h5 {[%clk 0:02:04.7]} 34...
Rg8 {[%clk 0:00:56.9]} 35. hxg6 {[%clk 0:02:01.9]} 35... fxg6 {[%clk 0:00:56.8]}
36. Bb3 {[%clk 0:01:42.9]} 36... Rf8 {[%clk 0:00:56.5]} 37. Be6 {[%clk
0:01:25.7]} 37... Nh5+ {[%clk 0:00:45.7]} 38. Ke4 {[%clk 0:01:20.7]} 38... Nf6+
{[%clk 0:00:33.1]} 39. Kd3 {[%clk 0:01:20.2]} 39... e4+ {[%clk 0:00:18.5]} 40.
Ke2 {[%clk 0:01:10.6]} 40... Kc7 {[%clk 0:00:19.4]} 41. Bxd7 {[%clk 0:01:10.7]}
41... Kxd7 {[%clk 0:00:19.6]} 42. g5 {[%clk 0:01:06]} 42... hxg5 {[%clk
0:00:18.2]} 43. Rxg5 {[%clk 0:01:06.9]} 43... Nd5 {[%clk 0:00:17.6]} 44. Re5
{[%clk 0:01:04.6]} 44... Rf4 {[%clk 0:00:13.1]} 45. Rd1 {[%clk 0:01:00.2]} 45...
Nf6 {[%clk 0:00:12.3]} 46. Ke3 {[%clk 0:00:52.5]} 46... Rf3+ {[%clk 0:00:12.3]}
47. Ke2 {[%clk 0:00:53.1]} 47... Rf4 {[%clk 0:00:12.6]} 48. Rg5 {[%clk
0:00:46.7]} 48... Ng4 {[%clk 0:00:09.2]} 49. Rf1 {[%clk 0:00:46.9]} 49... Nh2
{[%clk 0:00:08.4]} 50. Rh1 {[%clk 0:00:42.9]} 50... Ng4 {[%clk 0:00:06.6]} 51.
Rh7+ {[%clk 0:00:41]} 51... Ke8 {[%clk 0:00:07.1]} 52. Rxg6 {[%clk 0:00:37.4]}
52... Nf6 {[%clk 0:00:01.5]} 53. Rxb7 {[%clk 0:00:29.3]} 53... Kf8 {[%clk
0:00:01.9]} 54. Rxa7 {[%clk 0:00:27.5]} 54... Ng4 {[%clk 0:00:02.3]} 55. Rxg4
{[%clk 0:00:25.6]} 55... Rxg4 {[%clk 0:00:02]} 56. a4 {[%clk 0:00:26.3]} 1-0

[Event "Early-Titled-Tuesday-Blitz-February-20-2024"]
[Site "Chess.com"]
[Date "2024.02.20"]
[Round "11"]
[White "Hope_6"]
[Black "Navyblue1"]
[Result "0-1"]
[WhiteElo "2705"]
[BlackElo "2194"]
[TimeControl "180+1"]
[EndTime "10:09:30 PST"]
[Termination "Navyblue1 won by checkmate"]

1. d4 {[%clk 0:03:00.9]} 1... Nf6 {[%clk 0:02:51.7]} 2. c4 {[%clk 0:03:00.4]}
2... g6 {[%clk 0:02:49]} 3. Nc3 {[%clk 0:02:59.9]} 3... Bg7 {[%clk 0:02:49.6]}
4. e4 {[%clk 0:02:59.6]} 4... d6 {[%clk 0:02:50.3]} 5. f3 {[%clk 0:02:59.1]}
5... O-O {[%clk 0:02:48.4]} 6. Be3 {[%clk 0:02:58.8]} 6... c5 {[%clk 0:02:48.2]}
7. Nge2 {[%clk 0:02:57.7]} 7... cxd4 {[%clk 0:02:46.9]} 8. Nxd4 {[%clk
0:02:57.7]} 8... Nc6 {[%clk 0:02:47.5]} 9. Be2 {[%clk 0:02:57]} 9... Nd7 {[%clk
0:02:41.7]} 10. Nxc6 {[%clk 0:02:53.6]} 10... bxc6 {[%clk 0:02:40.9]} 11. O-O
{[%clk 0:02:54.3]} 11... Ba6 {[%clk 0:02:32.1]} 12. Qa4 {[%clk 0:02:50.3]} 12...
Bb7 {[%clk 0:02:30.9]} 13. Rad1 {[%clk 0:02:47.6]} 13... Nb6 {[%clk 0:02:27.1]}
14. Qc2 {[%clk 0:02:44.2]} 14... c5 {[%clk 0:02:21.5]} 15. Nd5 {[%clk
0:02:37.3]} 15... Nxd5 {[%clk 0:02:18.5]} 16. cxd5 {[%clk 0:02:38.2]} 16... Qb6
{[%clk 0:02:16]} 17. b3 {[%clk 0:02:30.7]} 17... Ba6 {[%clk 0:02:14]} 18. Kh1
{[%clk 0:02:23]} 18... Bxe2 {[%clk 0:02:11.6]} 19. Qxe2 {[%clk 0:02:23.9]} 19...
a5 {[%clk 0:02:11.3]} 20. Rb1 {[%clk 0:02:15.8]} 20... Qb4 {[%clk 0:02:08.8]}
21. Bd2 {[%clk 0:02:04.4]} 21... Qb7 {[%clk 0:01:54.6]} 22. Qc4 {[%clk 0:02:02]}
22... Qa6 {[%clk 0:01:51.5]} 23. Qc2 {[%clk 0:01:59.4]} 23... a4 {[%clk
0:01:45.9]} 24. b4 {[%clk 0:01:47.8]} 24... cxb4 {[%clk 0:01:43.6]} 25. Bxb4
{[%clk 0:01:46.7]} 25... Rfc8 {[%clk 0:01:42.6]} 26. Qf2 {[%clk 0:01:43]} 26...
Rc4 {[%clk 0:01:30]} 27. a3 {[%clk 0:01:40.2]} 27... Rac8 {[%clk 0:01:27.9]} 28.
Qe2 {[%clk 0:01:18.9]} 28... Qa8 {[%clk 0:01:19.5]} 29. f4 {[%clk 0:01:03.2]}
29... Rc2 {[%clk 0:00:44.9]} 30. Qe3 {[%clk 0:00:52]} 30... Bc3 {[%clk
0:00:43.2]} 31. Qd3 {[%clk 0:00:17]} 31... Bxb4 {[%clk 0:00:39.2]} 32. axb4
{[%clk 0:00:15.7]} 32... Qa7 {[%clk 0:00:35]} 33. b5 {[%clk 0:00:14.5]} 33...
Qb6 {[%clk 0:00:29.2]} 34. Qa3 {[%clk 0:00:12.2]} 34... R8c4 {[%clk 0:00:26.6]}
35. e5 {[%clk 0:00:10.6]} 35... R2c3 {[%clk 0:00:23.8]} 36. Qa2 {[%clk
0:00:09.9]} 36... Rc2 {[%clk 0:00:20.7]} 37. Qa3 {[%clk 0:00:10.1]} 37... R2c3
{[%clk 0:00:20.1]} 38. Qa2 {[%clk 0:00:07.9]} 38... Rc2 {[%clk 0:00:19.9]} 39.
Qa1 {[%clk 0:00:05.9]} 39... R2c3 {[%clk 0:00:16]} 40. e6 {[%clk 0:00:05.5]}
40... f6 {[%clk 0:00:15.5]} 41. Qa2 {[%clk 0:00:04.9]} 41... Kg7 {[%clk
0:00:14.4]} 42. Qd2 {[%clk 0:00:04.6]} 42... Rc5 {[%clk 0:00:13.3]} 43. Qd4
{[%clk 0:00:03.2]} 43... R3c4 {[%clk 0:00:13.2]} 44. Qd2 {[%clk 0:00:03.4]}
44... Rxb5 {[%clk 0:00:12.5]} 45. Ra1 {[%clk 0:00:03.6]} 45... Rb3 {[%clk
0:00:10.9]} 46. Qe2 {[%clk 0:00:03.6]} 46... Qc5 {[%clk 0:00:10.4]} 47. h4
{[%clk 0:00:02.3]} 47... Rbb4 {[%clk 0:00:09.8]} 48. h5 {[%clk 0:00:02.5]} 48...
Rxf4 {[%clk 0:00:08.6]} 49. Rfc1 {[%clk 0:00:02.7]} 49... Rh4# {[%clk
0:00:08.3]} 0-1

[Event "Early-Titled-Tuesday-Blitz-February-20-2024"]
[Site "Chess.com"]
[Date "2024.02.20"]
[Round "11"]
[White "Vaathi_Coming"]
[Black "Kirill_Klukin"]
[Result "1-0"]
[WhiteElo "2919"]
[BlackElo "2851"]
[TimeControl "180+1"]
[EndTime "10:09:33 PST"]
[Termination "Vaathi_Coming won by resignation"]

1. b3 {[%clk 0:03:00.9]} 1... d5 {[%clk 0:02:58.3]} 2. Bb2 {[%clk 0:03:01.7]}
2... Nf6 {[%clk 0:02:59.1]} 3. Nf3 {[%clk 0:03:01.9]} 3... Bf5 {[%clk
0:02:59.7]} 4. g3 {[%clk 0:03:02.7]} 4... e6 {[%clk 0:03:00]} 5. Bg2 {[%clk
0:03:03.4]} 5... Be7 {[%clk 0:03:00.7]} 6. O-O {[%clk 0:03:04.1]} 6... O-O
{[%clk 0:03:01.5]} 7. d3 {[%clk 0:03:04.7]} 7... h6 {[%clk 0:03:02]} 8. Nbd2
{[%clk 0:03:05.4]} 8... c5 {[%clk 0:03:01.5]} 9. Ne5 {[%clk 0:03:05.9]} 9...
Nbd7 {[%clk 0:02:53.8]} 10. e4 {[%clk 0:03:06.5]} 10... Bh7 {[%clk 0:02:52.3]}
11. f4 {[%clk 0:03:05.6]} 11... dxe4 {[%clk 0:02:50.5]} 12. Nxd7 {[%clk
0:03:00.3]} 12... Qxd7 {[%clk 0:02:49.7]} 13. Nxe4 {[%clk 0:02:58.6]} 13... Nd5
{[%clk 0:02:42]} 14. Qg4 {[%clk 0:02:44.7]} 14... Bg6 {[%clk 0:02:20]} 15. Rae1
{[%clk 0:02:43.6]} 15... Kh7 {[%clk 0:02:11.7]} 16. Nd2 {[%clk 0:02:41.1]} 16...
Nb4 {[%clk 0:02:09.2]} 17. Nc4 {[%clk 0:02:33.4]} 17... Bf6 {[%clk 0:01:54.9]}
18. Bxf6 {[%clk 0:02:09]} 18... gxf6 {[%clk 0:01:55]} 19. Rf2 {[%clk 0:01:48.4]}
19... Rg8 {[%clk 0:01:47.2]} 20. Qh4 {[%clk 0:01:47.8]} 20... Kg7 {[%clk
0:01:09.8]} 21. g4 {[%clk 0:01:44.3]} 21... Qd4 {[%clk 0:01:03.9]} 22. Ne3
{[%clk 0:01:07.8]} 22... Rae8 {[%clk 0:00:55.4]} 23. Qg3 {[%clk 0:01:06]} 23...
Kh8 {[%clk 0:00:51.1]} 24. Bxb7 {[%clk 0:00:52.7]} 24... Nd5 {[%clk 0:00:28.5]}
25. Bxd5 {[%clk 0:00:34.4]} 25... exd5 {[%clk 0:00:28.9]} 26. Rfe2 {[%clk
0:00:29.9]} 26... h5 {[%clk 0:00:24.7]} 27. h3 {[%clk 0:00:23.7]} 27... Bh7
{[%clk 0:00:24.6]} 28. Kg2 {[%clk 0:00:21.2]} 28... Re6 {[%clk 0:00:13.9]} 29.
Qf3 {[%clk 0:00:15.7]} 29... Rge8 {[%clk 0:00:11.6]} 30. c3 {[%clk 0:00:08]}
30... Qxd3 {[%clk 0:00:10.9]} 31. Kf2 {[%clk 0:00:06.1]} 31... d4 {[%clk
0:00:05.4]} 32. cxd4 {[%clk 0:00:06.3]} 32... Qxd4 {[%clk 0:00:05.5]} 33. Rd1
{[%clk 0:00:03.3]} 33... Bd3 {[%clk 0:00:04.6]} 34. Ree1 {[%clk 0:00:02.9]}
34... Qb2+ {[%clk 0:00:03.4]} 35. Kg3 {[%clk 0:00:02.7]} 35... Qd4 {[%clk
0:00:03.2]} 36. Nf5 {[%clk 0:00:01.6]} 36... Qd7 {[%clk 0:00:02.1]} 37. Rxe6
{[%clk 0:00:01.3]} 37... Qxe6 {[%clk 0:00:02.3]} 38. Rxd3 {[%clk 0:00:01.8]}
38... h4+ {[%clk 0:00:03.2]} 39. Kxh4 {[%clk 0:00:01.8]} 39... Qe1+ {[%clk
0:00:04.1]} 40. Ng3 {[%clk 0:00:01.9]} 40... Qe2 {[%clk 0:00:04.8]} 41. g5
{[%clk 0:00:02.8]} 41... Qe6 {[%clk 0:00:03.6]} 42. Qh5+ {[%clk 0:00:03]} 42...
Kg8 {[%clk 0:00:04.4]} 43. gxf6 {[%clk 0:00:02.9]} 43... Qxf6+ {[%clk
0:00:03.1]} 44. Qg5+ {[%clk 0:00:03.5]} 44... Qg7 {[%clk 0:00:04]} 45. Qxg7+
{[%clk 0:00:03.6]} 45... Kxg7 {[%clk 0:00:04.9]} 46. Nh5+ {[%clk 0:00:04.3]}
46... Kg6 {[%clk 0:00:05.1]} 47. Rd6+ {[%clk 0:00:05]} 47... Kf5 {[%clk
0:00:05.7]} 48. Ng7+ {[%clk 0:00:05.4]} 1-0